fUSD/lending_fUSD_20250107
["ID","MTS","AMOUNT","RATE_DAILY","PERIOD"]
[347927439,1736215834290,-500.0,9.999e-05,2]
[347927440,1736215834299,-500.0,9.999e-05,2]
[347927441,1736215834308,-500.0,9.999e-05,2]
[347927442,1736215834318,-500.0,9.999e-05,2]
[347927443,1736215834327,-514.80186323,9.999e-05,2]
[347927444,1736215834336,-385.9972437,9.999e-05,2]
[347927445,1736215834346,-500.0,9.999e-05,2]
[347927446,1736215834355,-530.53,9.999e-05,2]
[347927447,1736215834364,-500.0,9.999e-05,2]
[347927448,1736215834374,-500.0,9.999e-05,2]
[347927449,1736215834385,-265.37261035,9.999e-05,2]
[347927450,1736215834396,-500.0,9.999e-05,2]
[347927451,1736215834406,-992.34,9.999e-05,2]
[347927452,1736215834415,-500.0,9.999e-05,2]
[347927453,1736215834425,-500.0,9.999e-05,2]
[347927454,1736215834435,-500.0,9.999e-05,2]
[347927455,1736215834444,-500.0,9.999e-05,2]
[347927456,1736215834455,-500.0,9.999e-05,2]
[347927457,1736215834464,-500.0,9.999e-05,2]
[347927458,1736215834473,-500.0,9.999e-05,2]
[347927459,1736215834484,-2385.67,9.999e-05,2]
[347927460,1736215834493,-500.0,9.999e-05,2]
[347927461,1736215834503,-510.22858552,9.999e-05,2]
[347927462,1736215834513,-500.0,9.999e-05,2]
[347927463,1736215834523,-101.44916355,9.999e-05,2]
[347927464,1736215834604,-63.33469127,9.999e-05,2]
[347927465,1736215834615,-1290.82952,9.999e-05,2]
[347927466,1736215834624,-500.0,9.999e-05,2]
[347927467,1736215834633,-706.44,9.999e-05,2]
[347927468,1736215834642,-500.0,9.999e-05,2]
[347927469,1736215834652,-472.04247275,9.999e-05,2]
[347927470,1736215834661,-500.0,9.999e-05,2]
[347927471,1736215834671,-500.0,9.999e-05,2]
[347927472,1736215834680,-500.0,9.999e-05,2]
[347927473,1736215834689,-1060.565147,9.999e-05,2]
[347927474,1736215834699,-184.98592745,9.999e-05,2]
[347927475,1736215834709,-752.92,9.999e-05,2]
[347927476,1736215834718,-500.0,9.999e-05,2]
[347927477,1736215834728,-500.0,9.999e-05,2]
[347927478,1736215834737,-500.0,9.999e-05,2]
[347927479,1736215834746,-500.0,9.999e-05,2]
[347927480,1736215834755,-251.04755154,9.999e-05,2]
[347927481,1736215834767,-248.95244846,9.999e-05,2]
[347927482,1736215834777,-500.0,9.999e-05,2]
[347927483,1736215834786,-500.0,9.999e-05,2]
[347927484,1736215834795,-500.0,9.999e-05,2]
[347927485,1736215834804,-603.89,9.999e-05,2]
[347927486,1736215834814,-510.36195302,9.999e-05,2]
[347927487,1736215834823,-500.0,9.999e-05,2]
[347927488,1736215834832,-500.0,9.999e-05,2]
[347927489,1736215834842,-613.43,9.999e-05,2]
[347927490,1736215834851,-155.95411034,9.999e-05,2]
[347927491,1736215834861,-500.0,9.999e-05,2]
[347927492,1736215834870,-500.0,9.999e-05,2]
[347927493,1736215834880,-500.0,9.999e-05,2]
[347927494,1736215834889,-498.47103186,9.999e-05,2]
[347927495,1736215834898,-500.0,9.999e-05,2]
[347927496,1736215834908,-488.44144554,9.999e-05,2]
[347927497,1736215834917,-500.0,9.999e-05,2]
[347927498,1736215834926,-181.57625865,9.999e-05,2]
[347927499,1736215834938,-318.42374135,9.999e-05,2]
[347927500,1736215834948,-500.0,9.999e-05,2]
[347927501,1736215834957,-500.0,9.999e-05,2]
[347927502,1736215834967,-640.09,9.999e-05,2]
[347927503,1736215834976,-500.0,9.999e-05,2]
[347927504,1736215834985,-500.0,9.999e-05,2]
[347927505,1736215834995,-294.48712705,9.999e-05,2]
[347927506,1736215835004,-288.42561702,9.999e-05,2]
[347927507,1736215835013,-500.0,9.999e-05,2]
[347927508,1736215835023,-500.0,9.999e-05,2]
[347927509,1736215835032,-361.58705962,9.999e-05,2]
[347927512,1736215837934,-868.777,9.809e-05,2]
[347927513,1736215837944,-152.84073232,9.999e-05,2]
[347927514,1736215837954,-500.0,9.999e-05,2]
[347927515,1736215837963,-500.0,9.999e-05,2]
[347927516,1736215837972,-500.0,9.999e-05,2]
[347927517,1736215837982,-500.0,9.999e-05,2]
[347927518,1736215837991,-500.0,9.999e-05,2]
[347927519,1736215838000,-507.53327696,9.999e-05,2]
[347927520,1736215838009,-500.0,9.999e-05,2]
[347927521,1736215838019,-500.0,9.999e-05,2]
[347927522,1736215838028,-500.0,9.999e-05,2]
[347927523,1736215838037,-500.0,9.999e-05,2]
[347927524,1736215838047,-500.0,9.999e-05,2]
[347927525,1736215838056,-500.0,9.999e-05,2]
[347927526,1736215838065,-510.590396,9.999e-05,2]
[347927527,1736215838075,-500.0,9.999e-05,2]
[347927528,1736215838084,-500.0,9.999e-05,2]
[347927529,1736215838093,-500.0,9.999e-05,2]
[347927530,1736215838102,-500.0,9.999e-05,2]
[347927531,1736215838112,-1043.56,9.999e-05,2]
[347927532,1736215838121,-500.0,9.999e-05,2]
[347927533,1736215838130,-508.82679672,9.999e-05,2]
[347927534,1736215838140,-500.0,9.999e-05,2]
[347927535,1736215838149,-500.0,9.999e-05,2]
[347927536,1736215838159,-767.92,9.999e-05,2]
[347927537,1736215838169,-500.0,9.999e-05,2]
[347927538,1736215838178,-471.65855831,9.999e-05,2]
[347927539,1736215838187,-898.65,9.999e-05,2]
[347927540,1736215838196,-500.0,9.999e-05,2]
[347927541,1736215838207,-500.0,9.999e-05,2]
[347927542,1736215838221,-500.0,9.999e-05,2]
[347927543,1736215838233,-500.0,9.999e-05,2]
[347927544,1736215838247,-500.0,9.999e-05,2]
[347927545,1736215838259,-500.0,9.999e-05,2]
[347927546,1736215838272,-251.59576596,9.999e-05,2]
[347927547,1736215838282,-197.44036183,9.999e-05,2]
[347927548,1736215838293,-500.0,9.999e-05,2]
[347927549,1736215838305,-504.76,9.999e-05,2]
[347927552,1736215838316,-506.35032246,9.999e-05,2]
[347927554,1736215838328,-508.5720907,9.999e-05,2]
[347927556,1736215838339,-512.03131949,9.999e-05,2]
[347927558,1736215838351,-500.0,9.999e-05,2]
[347927561,1736215838363,-500.0,9.999e-05,2]
[347927563,1736215838376,-503.46963081,9.999e-05,2]
[347927565,1736215838390,-500.0,9.999e-05,2]
[347927567,1736215838401,-500.0,9.999e-05,2]
[347927570,1736215838413,-500.0,9.999e-05,2]
[347927572,1736215838424,-509.26234395,9.999e-05,2]
[347927574,1736215838434,-500.0,9.999e-05,2]
[347927576,1736215838444,-500.0,9.999e-05,2]
[347927578,1736215838458,-500.0,9.999e-05,2]
[347927580,1736215838469,-500.0,9.999e-05,2]
[347927583,1736215838484,-500.0,9.999e-05,2]
[347927585,1736215838495,-511.11858205,9.999e-05,2]
[347927587,1736215838506,-500.0,9.999e-05,2]
[347927589,1736215838519,-1517.71,9.999e-05,2]
[347927592,1736215838532,-500.0,9.999e-05,2]
[347927594,1736215838548,-500.0,9.999e-05,2]
[347927597,1736215838560,-500.0,9.999e-05,2]
[347927599,1736215838572,-500.0,9.999e-05,2]
[347927601,1736215838585,-500.0,9.999e-05,2]
[347927603,1736215838595,-630.0,0.0001,2]
[347927606,1736215838607,-10029.36507195,0.0001,2]
[347927610,1736215838641,-180725.31774227,0.0001,2]
[347927763,1736215840059,-293.82022634,0.0001,2]
[347927768,1736215840226,-4385.44406825,0.0001,2]
[347927769,1736215840240,-4709.29051433,0.0001,2]
[347927771,1736215840253,-3644.6,0.0001,2]
[347927773,1736215840265,-3854.00000001,0.0001,2]
[347927776,1736215840278,-2454.873683,0.0001,2]
[347927778,1736215840292,-464772.58534646,0.0001,2]
[347927781,1736215840307,-31999.64354899,0.0001,2]
[347927783,1736215840323,-402.09299889,0.0001,2]
[347927785,1736215840335,-733.60120769,0.0001,2]
[347927791,1736215840384,-481.24149502,0.0001,2]
[347927793,1736215840397,-1203.86999937,0.0001,2]
[347927795,1736215840409,-35133.76638663,0.0001,2]
[347927958,1736215843236,-289.94204034,9.999e-05,2]
[347927959,1736215843248,-525.96928236,9.999e-05,2]
[347927960,1736215843258,-500.0,9.999e-05,2]
[347927961,1736215843269,-118694.0886773,0.0001,2]
[347927962,1736215843283,-904.09385444,0.0001,2]
[347927963,1736215843300,-306.06,0.0001,2]
[347927964,1736215843411,-8676.32477536,0.0001,2]
[347927965,1736215843424,-470101.62815538,0.0001,2]
[347927966,1736215843438,-3657.74061708,0.0001,2]
[347927967,1736215843451,-731.14123196,0.0001,2]
[347927968,1736215843465,-775.79974163,0.0001,2]
[347927969,1736215843480,-9782.1,0.0001,2]
[347927970,1736215843493,-2637.50810704,0.0001,2]
[347927971,1736215843507,-78736.21898461,0.0001,2]
[347927973,1736215845921,-500.0,9.998e-05,2]
[347927974,1736215845931,-500.0,9.999e-05,2]
[347927975,1736215845940,-677.01,9.999e-05,2]
[347927976,1736215845949,-570.0,0.0001,2]
[347927977,1736215845959,-1945979.2772419,0.0001,2]
[347927978,1736215846083,-532.19886339,0.0001,2]
[347927979,1736215846094,-948.53487146,0.0001,2]
[347927980,1736215846105,-1204.3930419,0.0001,2]
[347927982,1736215846252,-2431.58382063,0.0001,2]
[347927984,1736215846263,-390608.025542,0.0001,2]
[347927987,1736215846542,-1500.0,0.0001,2]
[347927989,1736215846568,-3093.72735793,0.0001,2]
[347927997,1736216704776,150.0,7.822e-05,2]
[347927998,1736216736529,4464.05228394,8e-05,2]
[347927999,1736216737343,-275.16771606,8e-05,2]
[347928290,1736217032354,-500.0,8.219e-05,2]
[347928291,1736217032367,-951.78,8.219e-05,2]
[347928292,1736217032377,-150.0,8.261e-05,2]
[347928293,1736217032388,-405.68,8.354e-05,2]
[347928294,1736217032399,-351.53181258,8.354e-05,2]
[347928295,1736217032410,-50.08526673,8.39e-05,2]
[347928296,1736217032422,-301.44654585,8.39e-05,2]
[347928297,1736217032433,-250.0,8.39e-05,2]
[347928298,1736217032443,-3648.57155452,8.394e-05,2]
[347928299,1736217032468,-312.35844548,8.394e-05,2]
[347928300,1736217032479,-150.0,8.401e-05,2]
[347928301,1736217032489,-45.53112125,8.407e-05,2]
[347928302,1736217032502,-204.46887875,8.407e-05,2]
[347928303,1736217032512,-150.0,8.409e-05,2]
[347928304,1736217032523,-500.0,8.434e-05,3]
[347928305,1736217032534,-150.0,8.512e-05,2]
[347928306,1736217032545,-150.0,8.528e-05,2]
[347928307,1736217032555,-150.0,8.563e-05,2]
[347928308,1736217032566,-150.0,8.708e-05,2]
[347928311,1736217032577,-150.0,8.72e-05,2]
[347928313,1736217032587,-250.0,8.73e-05,2]
[347928315,1736217032598,-150.0,8.777e-05,2]
[347928317,1736217032608,-196.63,8.823e-05,2]
[347928319,1736217032618,-4451.23,8.855e-05,2]
[347928321,1736217032628,-150.0,8.866e-05,2]
[347928323,1736217032639,-150.0,8.866e-05,2]
[347928325,1736217032649,-150.0,8.911e-05,2]
[347928327,1736217032659,-56.00960301,8.915e-05,2]
[347928330,1736217032673,-93.99039699,8.915e-05,2]
[347928333,1736217032684,-150.0,8.955e-05,2]
[347928336,1736217032695,-815.40693088,9e-05,2]
[347928339,1736217032705,-150.0,9.018e-05,2]
[347928342,1736217032715,-181.44,9.024e-05,2]
[347928346,1736217032725,-211.8,9.029e-05,2]
[347928350,1736217032736,-200.0,9.029e-05,2]
[347928353,1736217032747,-1000.0,9.079e-05,2]
[347928356,1736217032757,-150.0,9.106e-05,2]
[347928359,1736217032767,-150.0,9.119e-05,2]
[347928362,1736217032777,-150.0,9.145e-05,2]
[347928365,1736217032791,-150.0,9.219e-05,2]
[347928367,1736217032800,-150.0,9.361e-05,2]
[347928369,1736217032811,-405.68,9.398e-05,2]
[347928371,1736217032821,-150.0,9.412e-05,2]
[347928373,1736217032831,-150.0,9.429e-05,2]
[347928376,1736217032842,-641.786,9.5e-05,2]
[347928378,1736217032852,-150.0,9.519e-05,2]
[347928380,1736217032862,-150.0,9.587e-05,2]
[347928382,1736217032872,-150.0,9.602e-05,2]
[347928384,1736217032883,-167.71,9.632e-05,2]
[347928386,1736217032892,-150.0,9.648e-05,2]
[347928388,1736217032903,-150.0,9.653e-05,2]
[347928390,1736217032914,-150.0,9.681e-05,2]
[347928392,1736217032926,-4155.95913546,9.85e-05,2]
[347928394,1736217032936,-150.0,9.87e-05,2]
[347928396,1736217032948,-150.0,9.879e-05,2]
[347928398,1736217032958,-1104.5439,9.899e-05,2]
[347928401,1736217032968,-1077.918,9.9e-05,2]
[347928403,1736217032979,-4097.9771,9.9e-05,2]
[347928404,1736217032990,-63.59831189,9.934e-05,2]
[347928408,1736217033012,-475.550835,9.934e-05,2]
[347928410,1736217033025,-551.28587995,9.934e-05,2]
[347928413,1736217033036,-150.0,9.993e-05,2]
[347928415,1736217033047,-500.0,9.998e-05,2]
[347928417,1736217033058,-500.0,9.998e-05,2]
[347928419,1736217033068,-15.56412005,9.998e-05,2]
[347928433,1736217038335,-484.43587995,9.998e-05,2]
[347928434,1736217038345,-951.0,9.998e-05,2]
[347928435,1736217038355,-500.0,9.998e-05,2]
[347928436,1736217038364,-500.0,9.998e-05,2]
[347928437,1736217038373,-500.0,9.998e-05,2]
[347928438,1736217038382,-500.0,9.998e-05,2]
[347928439,1736217038392,-500.0,9.998e-05,2]
[347928440,1736217038401,-500.0,9.998e-05,2]
[347928441,1736217038410,-500.0,9.998e-05,2]
[347928442,1736217038419,-445.80520274,9.999e-05,2]
[347928443,1736217038432,-500.0,9.999e-05,2]
[347928444,1736217038441,-500.0,9.999e-05,2]
[347928445,1736217038450,-257.44133277,9.999e-05,2]
[347928446,1736217038460,-500.0,9.999e-05,2]
[347928447,1736217038469,-500.0,9.999e-05,2]
[347928448,1736217038478,-524.20533372,9.999e-05,2]
[347928449,1736217038487,-472.48620768,9.999e-05,2]
[347928451,1736217038496,-1290.82952,9.999e-05,2]
[347928452,1736217038506,-1060.565147,9.999e-05,2]
[347928454,1736217038515,-178.80076514,9.999e-05,2]
[347928456,1736217038524,-478.93171996,9.999e-05,2]
[347928458,1736217038534,-511.78981115,9.999e-05,2]
[347928460,1736217038543,-509.69290044,9.999e-05,2]
[347928462,1736217038552,-500.0,9.999e-05,2]
[347928464,1736217038561,-622.69158341,9.999e-05,2]
[347928466,1736217038570,-500.0,9.999e-05,2]
[347928468,1736217038579,-500.0,9.999e-05,2]
[347928470,1736217038588,-500.0,9.999e-05,2]
[347928472,1736217038598,-500.0,9.999e-05,2]
[347928474,1736217038607,-500.0,9.999e-05,2]
[347928476,1736217038616,-500.0,9.999e-05,2]
[347928478,1736217038627,-500.0,9.999e-05,2]
[347928480,1736217038636,-500.0,9.999e-05,2]
[347928482,1736217038646,-589.45478659,9.999e-05,2]
[347928484,1736217038655,-500.0,9.999e-05,2]
[347928486,1736217038663,-500.0,9.999e-05,2]
[347928488,1736217038672,-616.13378548,9.999e-05,2]
[347928541,1736217043246,-19.00711362,9.999e-05,2]
[347928542,1736217043256,-500.0,9.999e-05,2]
[347928543,1736217043267,-500.0,9.999e-05,2]
[347928544,1736217043277,-500.0,9.999e-05,2]
[347928545,1736217043287,-500.0,9.999e-05,2]
[347928546,1736217043297,-500.0,9.999e-05,2]
[347928547,1736217043306,-500.0,9.999e-05,2]
[347928548,1736217043316,-166.13080254,9.999e-05,2]
[347928549,1736217043326,-502.41100989,9.999e-05,2]
[347928550,1736217043336,-500.0,9.999e-05,2]
[347928551,1736217043346,-870.73,9.999e-05,2]
[347928552,1736217043355,-500.0,9.999e-05,2]
[347928553,1736217043365,-513.80867143,9.999e-05,2]
[347928554,1736217043374,-500.0,9.999e-05,2]
[347928555,1736217043384,-500.0,9.999e-05,2]
[347928556,1736217043393,-500.0,9.999e-05,2]
[347928557,1736217043403,-527.53464097,9.999e-05,2]
[347928558,1736217043413,-500.0,9.999e-05,2]
[347928559,1736217043423,-514.97345964,9.999e-05,2]
[347928560,1736217043433,-500.0,9.999e-05,2]
[347928561,1736217043443,-638.22156449,9.999e-05,2]
[347928562,1736217043452,-500.0,9.999e-05,2]
[347928563,1736217043463,-510.83958273,9.999e-05,2]
[347928564,1736217043473,-500.0,9.999e-05,2]
[347928566,1736217043483,-500.0,9.999e-05,2]
[347928568,1736217043492,-510.24127825,9.999e-05,2]
[347928570,1736217043501,-510.30114371,9.999e-05,2]
[347928572,1736217043510,-500.0,9.999e-05,2]
[347928574,1736217043520,-1268.2,9.999e-05,2]
[347928576,1736217043528,-500.0,9.999e-05,2]
[347928578,1736217043537,-500.0,9.999e-05,2]
[347928579,1736217043546,-500.0,9.999e-05,2]
[347928581,1736217043556,-638.49880409,9.999e-05,2]
[347928584,1736217043566,-861.2,9.999e-05,2]
[347928585,1736217043577,-500.0,9.999e-05,2]
[347928587,1736217043586,-521.98415791,9.999e-05,2]
[347928590,1736217043596,-500.0,9.999e-05,2]
[347928593,1736217043606,-500.0,9.999e-05,2]
[347928596,1736217043615,-500.0,9.999e-05,2]
[347928598,1736217043624,-519.96658861,9.999e-05,2]
[347928601,1736217043634,-175.36176903,9.999e-05,2]
[347928604,1736217043644,-500.0,9.999e-05,2]
[347928606,1736217043653,-500.0,9.999e-05,2]
[347928608,1736217043663,-513.25878753,9.999e-05,2]
[347928609,1736217043672,-500.0,9.999e-05,2]
[347928612,1736217043685,-500.0,9.999e-05,2]
[347928614,1736217043694,-500.0,9.999e-05,2]
[347928616,1736217043703,-500.0,9.999e-05,2]
[347928617,1736217043713,-500.0,9.999e-05,2]
[347928620,1736217043723,-500.0,9.999e-05,2]
[347928621,1736217043732,-536.03534829,9.999e-05,2]
[347928623,1736217043741,-2286.26,9.999e-05,2]
[347928625,1736217043751,-500.0,9.999e-05,2]
[347928627,1736217043760,-510.18363996,9.999e-05,2]
[347928629,1736217043769,-515.26712574,9.999e-05,2]
[347928631,1736217043779,-500.0,9.999e-05,2]
[347928633,1736217043790,-500.0,9.999e-05,2]
[347928635,1736217043801,-500.0,9.999e-05,2]
[347928637,1736217043811,-500.0,9.999e-05,2]
[347928639,1736217043820,-531.67427181,9.999e-05,2]
[347928641,1736217043831,-549.81068215,9.999e-05,2]
[347928643,1736217043840,-500.0,9.999e-05,2]
[347928645,1736217043850,-500.0,9.999e-05,2]
[347928647,1736217043859,-721.55,9.999e-05,2]
[347928649,1736217043868,-511.07361589,9.999e-05,2]
[347928651,1736217043877,-514.11898483,9.999e-05,2]
[347928653,1736217043886,-500.0,9.999e-05,2]
[347928655,1736217043895,-511.76500129,9.999e-05,2]
[347928657,1736217043905,-500.0,9.999e-05,2]
[347928659,1736217043916,-430.51294727,9.999e-05,2]
[347928661,1736217043925,-578.73,9.999e-05,2]
[347928662,1736217043938,-587.87,9.999e-05,2]
[347928663,1736217043949,-500.0,9.999e-05,2]
[347928664,1736217043959,-1033.93,9.999e-05,2]
[347928665,1736217043969,-500.0,9.999e-05,2]
[347928666,1736217043979,-500.0,9.999e-05,2]
[347928667,1736217043989,-184.04694698,9.999e-05,2]
[347928668,1736217043998,-546.21918878,9.999e-05,2]
[347928669,1736217044008,-500.0,9.999e-05,2]
[347928670,1736217044018,-500.0,9.999e-05,2]
[347928671,1736217044028,-518.12729935,9.999e-05,2]
[347928672,1736217044037,-500.0,9.999e-05,2]
[347928673,1736217044047,-500.0,9.999e-05,2]
[347928674,1736217044055,-508.77651362,9.999e-05,2]
[347928675,1736217044065,-509.11678107,9.999e-05,2]
[347928676,1736217044076,-508.5979183,9.999e-05,2]
[347928677,1736217044085,-500.0,9.999e-05,2]
[347928678,1736217044095,-500.0,9.999e-05,2]
[347928679,1736217044104,-528.73187842,9.999e-05,2]
[347928680,1736217044115,-500.0,9.999e-05,2]
[347928681,1736217044124,-500.0,9.999e-05,2]
[347928682,1736217044134,-500.0,9.999e-05,2]
[347928683,1736217044145,-190.79676538,9.999e-05,2]
[347928684,1736217044155,-868.59,9.999e-05,2]
[347928685,1736217044165,-500.0,9.999e-05,2]
[347928686,1736217044174,-500.0,9.999e-05,2]
[347928687,1736217044185,-500.0,9.999e-05,2]
[347928688,1736217044194,-507.24114472,9.999e-05,2]
[347928689,1736217044204,-500.0,9.999e-05,2]
[347928690,1736217044214,-500.0,9.999e-05,2]
[347928691,1736217044223,-511.06199249,9.999e-05,2]
[347928692,1736217044235,-500.0,9.999e-05,2]
[347928693,1736217044245,-500.0,9.999e-05,2]
[347928694,1736217044255,-500.0,9.999e-05,2]
[347928695,1736217044264,-500.0,9.999e-05,2]
[347928696,1736217044274,-500.0,9.999e-05,2]
[347928697,1736217044284,-630.94659541,9.999e-05,2]
[347928698,1736217044294,-500.0,9.999e-05,2]
[347928699,1736217044303,-500.0,9.999e-05,2]
[347928700,1736217044313,-513.37416996,9.999e-05,2]
[347928701,1736217044323,-735.93,9.999e-05,2]
[347928702,1736217044332,-500.0,9.999e-05,2]
[347928703,1736217044342,-500.0,9.999e-05,2]
[347928704,1736217044351,-500.0,9.999e-05,2]
[347928705,1736217044361,-523.96590995,9.999e-05,2]
[347928706,1736217044371,-500.0,9.999e-05,2]
[347928707,1736217044381,-500.0,9.999e-05,2]
[347928708,1736217044391,-508.43,9.999e-05,2]
[347928709,1736217044400,-500.0,9.999e-05,2]
[347928710,1736217044409,-507.47359989,9.999e-05,2]
[347928711,1736217044419,-518.70131172,9.999e-05,2]
[347928712,1736217044429,-500.0,9.999e-05,2]
[347928713,1736217044438,-500.0,9.999e-05,2]
[347928714,1736217044448,-500.0,9.999e-05,2]
[347928715,1736217044458,-1340.94,9.999e-05,2]
[347928716,1736217044468,-500.0,9.999e-05,2]
[347928717,1736217044477,-500.0,9.999e-05,2]
[347928718,1736217044486,-271.19963011,9.999e-05,2]
[347928719,1736217044495,-500.0,9.999e-05,2]
[347928720,1736217044504,-621.57747642,9.999e-05,2]
[347928721,1736217044513,-500.0,9.999e-05,2]
[347928722,1736217044523,-170.71562167,9.999e-05,2]
[347928723,1736217044532,-513.77273819,9.999e-05,2]
[347928724,1736217044540,-998.62,9.999e-05,2]
[347928725,1736217044549,-486.34131028,9.999e-05,2]
[347928726,1736217044558,-513.1108035,9.999e-05,2]
[347928727,1736217044567,-500.0,9.999e-05,2]
[347928728,1736217044576,-500.0,9.999e-05,2]
[347928729,1736217044585,-500.0,9.999e-05,2]
[347928730,1736217044593,-527.75973627,9.999e-05,2]
[347928731,1736217044602,-508.84384695,9.999e-05,2]
[347928732,1736217044611,-500.0,9.999e-05,2]
[347928733,1736217044620,-1378.2989078,9.999e-05,2]
[347928734,1736217044630,-500.0,9.999e-05,2]
[347928735,1736217044640,-500.0,9.999e-05,2]
[347928736,1736217044650,-500.0,9.999e-05,2]
[347928737,1736217044659,-500.0,9.999e-05,2]
[347928738,1736217044669,-500.0,9.999e-05,2]
[347928739,1736217044679,-500.0,9.999e-05,2]
[347928740,1736217044689,-1454.47,9.999e-05,2]
[347928741,1736217044698,-500.0,9.999e-05,2]
[347928742,1736217044708,-1000.08,9.999e-05,2]
[347928743,1736217044718,-648.8,9.999e-05,2]
[347928744,1736217044727,-515.0,0.0001,2]
[347928745,1736217044736,-566.0,0.0001,2]
[347928746,1736217044746,-634.0,0.0001,2]
[347928747,1736217044757,-150.22,0.0001,2]
[347928748,1736217044767,-1916.595,0.0001,2]
[347928749,1736217044777,-1268.5,0.0001,2]
[347928750,1736217044787,-3776.0,0.0001,2]
[347928751,1736217044800,-937.914,0.0001,2]
[347928752,1736217044810,-826.0,0.0001,2]
[347928753,1736217044820,-3976.0,0.0001,2]
[347928754,1736217044829,-540.052,0.0001,2]
[347928755,1736217044840,-150.0,0.0001,2]
[347928756,1736217045027,-3894.0,0.0001,2]
[347928757,1736217045040,-2014.0,0.0001,2]
[347928758,1736217045051,-1326.031,0.0001,2]
[347928759,1736217045060,-1173.0,0.0001,2]
[347928760,1736217045070,-636.0,0.0001,2]
[347928761,1736217045079,-80381.17520984,0.0001,2]
[347928762,1736217045112,-470101.62815538,0.0001,2]
[347928763,1736217045146,-3063.34872,0.0001,2]
[347928793,1736217046141,-1759.7,9.999e-05,2]
[347928795,1736217046151,-223004.68181196,0.0001,2]
[347928797,1736217046161,-3011.99766934,0.0001,2]
[347928799,1736217046170,-1580.0,0.0001,6]
[347928801,1736217046180,-778.178,0.0001,9]
[347928803,1736217046190,-15820.15,0.0001,2]
[347928805,1736217046200,-300.0,0.0001,2]
[347928807,1736217046210,-300.0,0.0001,3]
[347928809,1736217046220,-300.0,0.0001,2]
[347928811,1736217046231,-300.0,0.0001,10]
[347928814,1736217046241,-300.0,0.0001,2]
[347928816,1736217046251,-300.0,0.0001,3]
[347928818,1736217046261,-300.0,0.0001,2]
[347928820,1736217046270,-300.0,0.0001,3]
[347928822,1736217046280,-300.0,0.0001,6]
[347928824,1736217046290,-250.0,0.0001,6]
[347928826,1736217046300,-250.0,0.0001,2]
[347928828,1736217046310,-249.35,0.0001,6]
[347928830,1736217046320,-371.0,0.0001,2]
[347928832,1736217046330,-323889.78969628,0.0001,2]
[347928835,1736217046355,-1992.66703522,0.0001,2]
[347928849,1736217046481,-1129.43523812,0.0001,2]
[347928851,1736217046492,-1116.78320645,0.0001,2]
[347928853,1736217046503,-250754.36452485,0.0001,2]
[347928855,1736217046575,-9619.0,0.0001,2]
[347928856,1736217046584,-1234.99999999,0.0001,2]
[347928859,1736217233823,-155.77,7.429e-05,2]
[347928905,1736218024920,-150.0,7.561e-05,2]
[347929104,1736218232290,-150.0,8.116e-05,2]
[347929105,1736218232300,-1360.87977577,8.219e-05,2]
[347929106,1736218232311,-85.51022423,8.219e-05,2]
[347929107,1736218232321,-150.0,8.32e-05,2]
[347929108,1736218232330,-150.0,8.328e-05,2]
[347929109,1736218232344,-126.89293601,8.348e-05,2]
[347929110,1736218232464,-23.10706399,8.348e-05,2]
[347929111,1736218232474,-540.13288062,8.523e-05,2]
[347929112,1736218232485,-459.86711938,8.523e-05,2]
[347929113,1736218232495,-91.12995763,8.546e-05,2]
[347929114,1736218232507,-58.87004237,8.546e-05,2]
[347929115,1736218232517,-211.8,8.581e-05,2]
[347929116,1736218232527,-263.2888218,8.726e-05,2]
[347929117,1736218232539,-197.6311782,8.726e-05,2]
[347929118,1736218232549,-150.0,8.762e-05,2]
[347929119,1736218232559,-150.0,8.803e-05,2]
[347929120,1736218232568,-150.0,8.854e-05,2]
[347929121,1736218232578,-150.0,8.887e-05,2]
[347929122,1736218232587,-150.0,8.887e-05,2]
[347929123,1736218232597,-150.0,8.919e-05,2]